[Event "Djerba Festival Blitz 2025"]
[Site "Djerba"]
[Date "2025.02.21"]
[Round "2.38"]
[White "Mathanchandaran, Dev"]
[Black "Chargui, Saleh"]
[Result "1-0"]
[ECO "C11"]
[WhiteElo "1650"]
[BlackElo "1709"]
[PlyCount "79"]
[EventDate "2025.02.15"]
[EventType "swiss"]
[EventCountry "TUN"]
[TimeControl "180+3"]

1. e4 {[%emt 0:03:06]} e6 {[%emt 0:03:06]} 2. d4 {[%emt 0:00:03]} d5 {[%emt 0:00:03]} 3. Nd2 {[%emt 0:00:03]} Nf6 {[%emt 0:00:03]} 4. e5 {[%emt 0:00:03]} Nfd7 {[%emt 0:00:03]} 5. c3 {[%emt 0:00:03]} c5 6. Ne2 {[%emt 0:00:03]} Nc6 {[%emt 0:00:06]} 7. Nf3 {[%emt 0:00:03]} Qb6 {[%emt 0:00:03]} 8. g3 {[%emt 0:00:03]} Be7 {[%emt 0:00:03]} 9. Bg2 {[%emt 0:00:03]} O-O {[%emt 0:00:03]} 10. O-O f6 {[%emt 0:00:03]} 11. exf6 {[%emt 0:00:06]} Bxf6 {[%emt 0:00:03]} 12. Nf4 {[%emt 0:00:03]} Ndb8 {[%emt 0:00:03]} 13. dxc5 {[%emt 0:00:03]} Qxc5 {[%emt 0:00:03]} 14. Be3 {[%emt 0:00:03]} Qb5 {[%emt 0:00:03]} 15. Qc2 {[%emt 0:00:03]} Na6 {[%emt 0:00:03]} 16. Rfe1 {[%emt 0:00:03]} Re8 {[%emt 0:00:03]} 17. Bf1 {[%emt 0:00:03]} Qa5 {[%emt 0:00:03]} 18. b4 {[%emt 0:00:03]} Naxb4 {[%emt 0:00:03]} 19. cxb4 {[%emt 0:00:03]} Nxb4 {[%emt 0:00:03]} 20. Qb3 {[%emt 0:00:03]} Bd7 {[%emt 0:00:03]} 21. a4 {[%emt 0:00:03]} Bxa1 {[%emt 0:00:03]} 22. Rxa1 {[%emt 0:00:03]} Nc6 {[%emt 0:00:03]} 23. Qxb7 {[%emt 0:00:03]} Qd8 {[%emt 0:00:03]} 24. Qb2 {[%emt 0:00:03]} Rb8 {[%emt 0:00:03]} 25. Qc3 {[%emt 0:00:03]} Qf6 {[%emt 0:00:03]} 26. Qc1 {[%emt 0:00:03]} e5 {[%emt 0:00:03]} 27. Nxd5 {[%emt 0:00:03]} Qxf3 {[%emt 0:00:03]} 28. Bg2 {[%emt 0:00:03]} Qf7 {[%emt 0:00:03]} 29. Nc7 {[%emt 0:00:03]} Re7 {[%emt 0:00:03]} 30. Bxc6 {[%emt 0:00:03]} Bxc6 {[%emt 0:00:03]} 31. Qxc6 {[%emt 0:00:03]} Rxc7 {[%emt 0:00:03]} 32. Qg2 {[%emt 0:00:03]} e4 {[%emt 0:00:03]} 33. Bxa7 {[%emt 0:00:03]} Rxa7 {[%emt 0:00:03]} 34. Qxe4 {[%emt 0:00:03]} Rb2 {[%emt 0:00:03]} 35. Kg2 {[%emt 0:00:03]} Qxf2+ {[%emt 0:00:03]} 36. Kh3 {[%emt 0:00:03]} Qxh2+ {[%emt 0:00:03]} 37. Kg4 {[%emt 0:00:03]} h5+ {[%emt 0:00:03]} 38. Kf4 {[%emt 0:00:03]} Rf7+ {[%emt 0:00:03]} 39. Ke3 {[%emt 0:00:03]} Qe2+ {[%emt 0:00:03]} 40. Kd4 {[%emt 0:00:03]} 1-0

[Event "Djerba Festival Blitz 2025"]
[Site "Djerba"]
[Date "2025.02.21"]
[Round "2.41"]
[White "Farouz, Paul"]
[Black "Gunduz, Davud"]
[Result "0-1"]
[ECO "C30"]
[WhiteElo "1680"]
[BlackElo "1483"]
[PlyCount "54"]
[EventDate "2025.02.15"]
[EventType "swiss"]
[EventCountry "TUN"]
[TimeControl "180+3"]

1. e4 {[%emt 0:00:03]} e5 {[%emt 0:00:03]} 2. Nc3 {[%emt 0:00:01]} Nc6 {[%emt 0:00:02]} 3. Bc4 {[%emt 0:00:03]} Nf6 {[%emt 0:00:03]} 4. d3 {[%emt 0:00:02]} Bc5 {[%emt 0:00:03]} 5. f4 {[%emt 0:00:06]} d6 {[%emt 0:00:13]} 6. Nf3 {[%emt 0:00:03]} a6 {[%emt 0:00:06]} 7. h3 {[%emt 0:00:25]} Be6 {[%emt 0:00:04]} 8. Bxe6 {[%emt 0:00:04]} fxe6 {[%emt 0:00:03]} 9. fxe5 {[%emt 0:00:06]} dxe5 {[%emt 0:00:03]} 10. Qe2 {[%emt 0:00:07]} Nd4 {[%emt 0:00:10]} 11. Nxd4 {[%emt 0:00:05]} exd4 {[%emt 0:00:03]} 12. Nd1 {[%emt 0:00:05]} e5 {[%emt 0:00:03]} 13. O-O {[%emt 0:00:06]} O-O {[%emt 0:00:05]} 14. Kh1 {[%emt 0:00:13]} Qe8 {[%emt 0:00:12]} 15. c3 {[%emt 0:00:22]} Nh5 {[%emt 0:00:03]} 16. Rxf8+ {[%emt 0:00:06]} Kxf8 {[%emt 0:00:04]} 17. Qf2+ {[%emt 0:00:16]} Kg8 {[%emt 0:00:03]} 18. Kh2 {[%emt 0:00:30]} Qg6 {[%emt 0:00:13]} 19. g4 {[%emt 0:00:19]} Rf8 {[%emt 0:00:05]} 20. Qg2 {[%emt 0:00:04]} Nf4 {[%emt 0:00:03]} 21. Bxf4 {[%emt 0:00:06]} Rxf4 {[%emt 0:00:02]} 22. Nf2 {[%emt 0:00:16]} dxc3 {[%emt 0:00:03]} 23. Rf1 {[%emt 0:00:09]} cxb2 {[%emt 0:00:09]} 24. d4 {[%emt 0:00:23]} Bxd4 {[%emt 0:00:04]} 25. Kg3 {[%emt 0:00:09]} Bxf2+ {[%emt 0:00:07]} 26. Rxf2 {[%emt 0:00:12]} Rxf2 {[%emt 0:00:03]} 27. Qxf2 {[%emt 0:00:03]} b1=Q {[%emt 0:00:03]} 0-1

[Event "Djerba Festival Blitz 2025"]
[Site "Djerba"]
[Date "2025.02.21"]
[Round "2.42"]
[White "Baba, Jihed"]
[Black "Badrakova, Kseniya"]
[Result "0-1"]
[ECO "B01"]
[WhiteElo "1669"]
[BlackElo "1757"]
[PlyCount "44"]
[EventDate "2025.02.15"]
[EventType "swiss"]
[EventCountry "TUN"]
[TimeControl "180+3"]

1. e4 {[%emt 0:00:04]} d5 {[%emt 0:00:04]} 2. exd5 {[%emt 0:00:02]} Nf6 {[%emt 0:00:01]} 3. c4 {[%emt 0:00:02]} c6 {[%emt 0:00:02]} 4. dxc6 {[%emt 0:00:03]} e5 {[%emt 0:00:02]} 5. cxb7 {[%emt 0:00:03]} Bxb7 {[%emt 0:00:02]} 6. Nf3 {[%emt 0:00:09]} Bc5 {[%emt 0:00:16]} 7. Qe2 {[%emt 0:00:23]} O-O {[%emt 0:00:08]} 8. g3 {[%emt 0:00:14]} e4 {[%emt 0:00:02]} 9. Nh4 {[%emt 0:00:12]} e3 {[%emt 0:00:03]} 10. Bg2 {[%emt 0:00:16]} exf2+ {[%emt 0:00:06]} 11. Kf1 {[%emt 0:00:02]} Re8 {[%emt 0:00:04]} 12. Bxb7 {[%emt 0:00:49]} Rxe2 {[%emt 0:00:06]} 13. Kxe2 {[%emt 0:00:14]} Qe7+ {[%emt 0:00:11]} 14. Kd3 {[%emt 0:00:18]} Qxb7 {[%emt 0:00:05]} 15. Rf1 {[%emt 0:00:07]} Qe4+ {[%emt 0:00:09]} 16. Kc3 {[%emt 0:00:07]} Qd4+ {[%emt 0:00:02]} 17. Kb3 {[%emt 0:00:03]} Nc6 {[%emt 0:00:07]} 18. Nc3 {[%emt 0:00:05]} Rb8+ {[%emt 0:00:02]} 19. Nb5 {[%emt 0:00:02]} Rxb5+ {[%emt 0:00:04]} 20. cxb5 {[%emt 0:00:03]} Qb4+ {[%emt 0:00:02]} 21. Kc2 {[%emt 0:00:02]} Qc4+ {[%emt 0:00:02]} 22. Kb1 {[%emt 0:00:13]} Qd3# {[%emt 0:00:07]} 0-1

[Event "Djerba Festival Blitz 2025"]
[Site "Djerba"]
[Date "2025.02.21"]
[Round "2.43"]
[White "Kolodner, Garry"]
[Black "Baba, Mouadh"]
[Result "0-1"]
[ECO "E30"]
[WhiteElo "1697"]
[BlackElo "1688"]
[PlyCount "61"]
[EventDate "2025.02.15"]
[EventType "swiss"]
[EventCountry "TUN"]
[TimeControl "180+3"]

1. d4 {[%emt 0:03:06]} Nf6 {[%emt 0:03:06]} 2. c4 {[%emt 0:00:03]} e6 3. Nc3 {[%emt 0:00:03]} Bb4 4. Bg5 {[%emt 0:00:03]} h6 {[%emt 0:00:09]} 5. Bxf6 {[%emt 0:00:03]} Qxf6 {[%emt 0:00:03]} 6. e4 {[%emt 0:00:03]} d6 {[%emt 0:00:03]} 7. Bd3 {[%emt 0:00:03]} Qxd4 {[%emt 0:00:03]} 8. Nge2 {[%emt 0:00:03]} Bxc3+ {[%emt 0:00:03]} 9. Nxc3 {[%emt 0:00:03]} Qf6 {[%emt 0:00:03]} 10. O-O {[%emt 0:00:03]} O-O {[%emt 0:00:03]} 11. Qc2 {[%emt 0:00:03]} Nc6 {[%emt 0:00:03]} 12. Rad1 {[%emt 0:00:03]} Nb4 {[%emt 0:00:03]} 13. Qb1 {[%emt 0:00:03]} Nxd3 {[%emt 0:00:03]} 14. Qxd3 {[%emt 0:00:03]} b6 {[%emt 0:00:03]} 15. Nb5 {[%emt 0:00:03]} Qd8 {[%emt 0:00:03]} 16. e5 {[%emt 0:00:03]} a6 {[%emt 0:00:03]} 17. Nc3 {[%emt 0:00:03]} Bb7 {[%emt 0:00:03]} 18. exd6 {[%emt 0:00:03]} cxd6 {[%emt 0:00:03]} 19. Qxd6 {[%emt 0:00:03]} Qg5 {[%emt 0:00:03]} 20. Qg3 {[%emt 0:00:03]} Qc5 {[%emt 0:00:03]} 21. b3 {[%emt 0:00:03]} Rac8 {[%emt 0:00:03]} 22. Na4 {[%emt 0:00:03]} Qb4 {[%emt 0:00:03]} 23. Qe3 {[%emt 0:00:03]} b5 {[%emt 0:00:03]} 24. Nb6 {[%emt 0:00:03]} Rc6 {[%emt 0:00:03]} 25. Nd7 {[%emt 0:00:03]} Rfc8 {[%emt 0:00:03]} 26. Ne5 {[%emt 0:00:03]} R6c7 {[%emt 0:00:03]} 27. cxb5 {[%emt 0:00:03]} axb5 28. h3 {[%emt 0:00:03]} Rc3 {[%emt 0:00:06]} 29. Qd2 {[%emt 0:00:03]} f6 {[%emt 0:00:03]} 30. Nd3 {[%emt 0:00:03]} R8c7 {[%emt 0:00:03]} 31. Nxb4 {[%emt 0:00:03]} 0-1

[Event "Djerba Festival Blitz 2025"]
[Site "Djerba"]
[Date "2025.02.21"]
[Round "2.44"]
[White "Khider, Amilia"]
[Black "Guinet, Andy"]
[Result "1-0"]
[ECO "B06"]
[WhiteElo "1524"]
[BlackElo "1665"]
[PlyCount "77"]
[EventDate "2025.02.15"]
[EventType "swiss"]
[EventCountry "TUN"]
[TimeControl "180+3"]

1. e4 {[%emt 0:00:03]} g6 {[%emt 0:00:03]} 2. d4 {[%emt 0:00:03]} Bg7 {[%emt 0:00:01]} 3. Nf3 {[%emt 0:00:06]} d6 {[%emt 0:00:02]} 4. Bc4 {[%emt 0:00:08]} Bg4 {[%emt 0:00:02]} 5. Be2 {[%emt 0:00:21]} Nc6 {[%emt 0:00:11]} 6. c3 {[%emt 0:00:11]} Nf6 {[%emt 0:00:17]} 7. h3 {[%emt 0:00:07]} Bxf3 {[%emt 0:00:12]} 8. Bxf3 {[%emt 0:00:03]} O-O {[%emt 0:00:03]} 9. Be3 {[%emt 0:00:03]} e5 {[%emt 0:00:11]} 10. d5 {[%emt 0:00:10]} Ne7 {[%emt 0:00:02]} 11. Nd2 {[%emt 0:00:04]} c6 {[%emt 0:00:04]} 12. c4 {[%emt 0:00:07]} cxd5 {[%emt 0:00:17]} 13. cxd5 {[%emt 0:00:06]} Nd7 {[%emt 0:00:02]} 14. Nc4 {[%emt 0:00:11]} Nc8 {[%emt 0:00:20]} 15. Qd2 {[%emt 0:00:18]} b5 {[%emt 0:00:04]} 16. Na5 {[%emt 0:00:04]} f5 {[%emt 0:00:28]} 17. Nc6 {[%emt 0:00:09]} Qe8 {[%emt 0:00:02]} 18. g3 {[%emt 0:00:23]} Ne7 {[%emt 0:00:08]} 19. Nxa7 {[%emt 0:00:20]} fxe4 {[%emt 0:00:10]} 20. Bxe4 {[%emt 0:00:03]} Qb8 {[%emt 0:00:17]} 21. Nc6 {[%emt 0:00:09]} Nxc6 {[%emt 0:00:02]} 22. dxc6 {[%emt 0:00:02]} Nf6 {[%emt 0:00:07]} 23. Bg2 {[%emt 0:00:05]} Qc7 {[%emt 0:00:02]} 24. O-O {[%emt 0:00:07]} e4 {[%emt 0:00:03]} 25. Rac1 {[%emt 0:00:05]} Ra6 {[%emt 0:00:03]} 26. Qb4 {[%emt 0:00:13]} Rxc6 {[%emt 0:00:09]} 27. Qxb5 {[%emt 0:00:04]} Rxc1 {[%emt 0:00:02]} 28. Rxc1 {[%emt 0:00:02]} Qe7 {[%emt 0:00:07]} 29. a4 {[%emt 0:00:04]} Nd7 {[%emt 0:00:48]} 30. Rc7 {[%emt 0:00:12]} Rf7 {[%emt 0:00:11]} 31. a5 {[%emt 0:00:10]} Qe6 {[%emt 0:00:02]} 32. a6 {[%emt 0:00:08]} Ne5 {[%emt 0:00:04]} 33. Qb8+ {[%emt 0:00:09]} Bf8 {[%emt 0:00:02]} 34. a7 {[%emt 0:00:02]} Rxc7 {[%emt 0:00:03]} 35. Qxc7 {[%emt 0:00:03]} Qe8 {[%emt 0:00:01]} 36. Qb8 {[%emt 0:00:02]} Qxb8 {[%emt 0:00:03]} 37. axb8=Q {[%emt 0:00:05]} Kg7 {[%emt 0:00:03]} 38. Bxe4 {[%emt 0:00:03]} Nc4 {[%emt 0:00:03]} 39. Qc7+ {[%emt 0:00:04]} 1-0

[Event "Djerba Festival Blitz 2025"]
[Site "Djerba"]
[Date "2025.02.21"]
[Round "2.46"]
[White "Doucet, Paul-Loup"]
[Black "Guinet, Stephane"]
[Result "0-1"]
[ECO "B05"]
[WhiteElo "1503"]
[BlackElo "1617"]
[PlyCount "75"]
[EventDate "2025.02.15"]
[EventType "swiss"]
[EventCountry "TUN"]
[TimeControl "180+3"]

1. e4 {[%emt 0:00:03]} Nf6 {[%emt 0:00:04]} 2. e5 {[%emt 0:00:01]} Nd5 {[%emt 0:00:02]} 3. c4 {[%emt 0:00:02]} Nb6 {[%emt 0:00:01]} 4. d4 {[%emt 0:00:02]} d6 {[%emt 0:00:02]} 5. exd6 {[%emt 0:00:02]} exd6 {[%emt 0:00:02]} 6. Nf3 {[%emt 0:00:02]} Bg4 {[%emt 0:00:03]} 7. Nc3 {[%emt 0:00:02]} Be7 {[%emt 0:00:03]} 8. Be2 {[%emt 0:00:02]} O-O {[%emt 0:00:04]} 9. h3 {[%emt 0:00:02]} Bh5 {[%emt 0:00:01]} 10. O-O {[%emt 0:00:03]} Nc6 {[%emt 0:00:06]} 11. Be3 {[%emt 0:00:03]} Bg5 {[%emt 0:00:07]} 12. Nxg5 {[%emt 0:00:05]} Bxe2 {[%emt 0:00:04]} 13. Qxe2 {[%emt 0:00:03]} Re8 {[%emt 0:00:10]} 14. Qf3 {[%emt 0:00:13]} Nxd4 {[%emt 0:00:07]} 15. Qxf7+ {[%emt 0:00:20]} Kh8 {[%emt 0:00:01]} 16. Bxd4 {[%emt 0:00:24]} Qxg5 {[%emt 0:00:11]} 17. Ne4 {[%emt 0:00:07]} Rxe4 {[%emt 0:00:11]} 18. Be3 {[%emt 0:00:06]} Qe5 {[%emt 0:00:37]} 19. b3 {[%emt 0:00:13]} Re8 {[%emt 0:00:13]} 20. Bxb6 {[%emt 0:00:41]} axb6 {[%emt 0:00:07]} 21. f4 {[%emt 0:00:08]} Qc5+ {[%emt 0:00:14]} 22. Kh1 {[%emt 0:00:06]} d5 {[%emt 0:00:09]} 23. Qxd5 {[%emt 0:00:18]} Qxd5 {[%emt 0:00:09]} 24. cxd5 {[%emt 0:00:02]} Rd4 {[%emt 0:00:03]} 25. Rad1 {[%emt 0:00:02]} Rxd1 {[%emt 0:00:03]} 26. Rxd1 {[%emt 0:00:02]} Re4 {[%emt 0:00:03]} 27. g3 {[%emt 0:00:04]} Re2 {[%emt 0:00:06]} 28. a3 {[%emt 0:00:11]} h6 {[%emt 0:00:07]} 29. d6 {[%emt 0:00:02]} cxd6 {[%emt 0:00:03]} 30. Rxd6 {[%emt 0:00:03]} Re3 {[%emt 0:00:02]} 31. Rxb6 {[%emt 0:00:03]} Rxg3 {[%emt 0:00:03]} 32. Kh2 {[%emt 0:00:02]} Rf3 {[%emt 0:00:03]} 33. Rxb7 {[%emt 0:00:02]} Rxf4 {[%emt 0:00:03]} 34. a4 {[%emt 0:00:03]} Rd4 {[%emt 0:00:07]} 35. b4 {[%emt 0:00:06]} Kg8 {[%emt 0:00:05]} 36. a5 {[%emt 0:00:01]} Kf8 {[%emt 0:00:02]} 37. a6 {[%emt 0:00:02]} Rd8 {[%emt 0:00:02]} 38. a7 {[%emt 0:00:02]} 0-1